Cogmind - Beta 17 @@@ ROGUE MODE // 2026.08.01 @ 21:14:27 Player: f3-rnm Result: Destroyed self with Rocket Launcher Performance ------------- Evolutions (0) 0 Regions Visited (2) 400 Robots Destroyed (27) 135 Value Destroyed (513) 513 Prototype IDs (1) 20 Alien Tech Used (0) 0 Bonus (5000) 5000 TOTAL SCORE: 6068 Bonus ------- Prayed to X0-1V1 5000 Cogmind --------- Core Integrity 0/250 Matter 168/300 Energy 915/925 System Corruption 7% Temperature Cool (0) Movement Treading (240) Ox1 Location -10/Mines Parts ------- > --- POWER (1) -------- Light Ion Engine > --- PROPULSION (2) --- Light Treads Light Treads > --- UTILITY (2) ------ High-capacity Storage Unit X0-1V1's Piety Tracker > --- WEAPON (2) ------- Light Assault Rifle Rocket Launcher > --- INVENTORY (20) --- Light Treads Light Treads Wheel Wheel Wheel Heat Sink Disposable Heat Sink Medium Storage Unit Large Storage Unit Medium Matter Pod (6) Targeting Computer Power Shielding Light Armor Plating Shield Generator Medium Laser Assault Rifle Light Assault Rifle Light Assault Rifle Mining Claw Peak State ------------ > --- POWER ------------ Light Ion Engine > --- PROPULSION ------- Light Treads Light Treads > --- UTILITY ---------- High-capacity Storage Unit X0-1V1's Piety Tracker > --- WEAPON ----------- Light Assault Rifle Rocket Launcher > --- INVENTORY -------- Light Treads Light Treads Wheel Wheel Wheel Heat Sink Disposable Heat Sink Medium Storage Unit Large Storage Unit Medium Matter Pod Targeting Computer Power Shielding Light Armor Plating Shield Generator Medium Laser Assault Rifle Light Assault Rifle Light Assault Rifle Mining Claw [Rating: 22] Favorites ----------- Power Ion Engine Engine Ion Engine Propulsion Light Treads Treads Light Treads Utility High-capacity Storage Unit Device X0-1V1's Piety Tracker Storage High-capacity Storage Unit Weapon Light Assault Rifle Ballistic Gun Light Assault Rifle Launcher Grenade Launcher Build | -11 -10 -10 ------- Run | Yrd Mat Min Slots Evolved . | . . . Power . | . . . Propulsion . | . . . Utility . | . . . Weapon . | . . . Parts Attached 17 | 6 4 7 Power 3 | 1 . 2 Engine 3 | 1 . 2 Core . | . . . Reactor . | . . . Propulsion 5 | 2 1 2 Treads 5 | 2 1 2 Leg . | . . . Wheel . | . . . Hover . | . . . Flight . | . . . Utility 4 | 1 3 . Device 1 | . 1 . Storage 3 | 1 2 . Processor . | . . . Hackware . | . . . Protection . | . . . Artifact . | . . . Weapon 5 | 2 . 3 Energy Gun . | . . . Energy Cannon . | . . . Ballistic Gun 3 | 2 . 1 Ballistic Cannon . | . . . Launcher 2 | . . 2 Special Weapon . | . . . Impact Weapon . | . . . Slashing Weapon . | . . . Piercing Weapon . | . . . Special Melee Weapon . | . . . Unidentified Prototypes 1 | . 1 . Parts Lost 5 | . . 5 Power 2 | . . 2 Propulsion 2 | . . 2 Utility . | . . . Weapon 1 | . . 1 Highest Loss Streak 3 | . . 3 To Critical Strikes . | . . . Average Backups 13 | 1 10 18 Power 1 | . 1 . Propulsion 3 | . 3 4 Utility 4 | . 2 8 Weapon 3 | . 2 4 Tool/Special . | . . . Unused Backups 16 | . . 16 Power . | . . . Propulsion 5 | . . 5 Utility 8 | . . 8 Weapon 3 | . . 3 Tool/Special . | . . . Average Slot Usage (%) 90 | . 85 99 Engine 13 | . 14 13 Treads 27 | . 27 27 Device 5 | . . 14 Storage 14 | . 14 14 Ballistic Gun 24 | . 28 17 Launcher 3 | . . 10 Peak Build Rating 22 | 6 20 22 Average Rating 11 | 4 7 20 On Entrance 8 | . 6 20 Avg Prop Armor Cover (%) . | . . . Naked Turns . | . . . Heaviest Build 50 | 12 48 50 Greatest Support 40 | 40 40 40 Greatest Overweight (x) 2 | . 2 1 Average Overweight (x) . | . . 1 Largest Inventory Capacity 20 | 8 20 20 Average Capacity 17 | 6 16 20 Most Carried 20 | 3 16 20 Average Carried 13 | 1 10 18 Final Capacity 20 | 8 20 20 Final Carried 19 | 3 16 19 Class Distribution -------------------- 100% | Mutant Dominant Class ---------------- Mutant | -10/Materials Mutant | -10/Mines Resources | -11 -10 -10 ----------- Run | Yrd Mat Min Matter Collected 629 | 261 185 183 Remotely . | . . . Salvage Created 658 | . 415 243 Parts 54 | . 35 19 Haulers Intercepted 2 | . 2 . Recyclers Shooed 1 | . 1 . Parts Field Recycled . | . . . Retrieved Matter . | . . . Parts Self-Destructed . | . . . Prevented . | . . . Parts Restored . | . . . Kills | -11 -10 -10 ------- Run | Yrd Mat Min Combat Hostiles Destroyed 21 | . 11 10 Guns 13 | . 11 2 AOE 8 | . . 8 Classes Destroyed 7 | . 4 3 Builder 1 | . 1 . Tunneler 2 | . . 2 Hauler 2 | . 2 . Recycler 1 | . . 1 Swarmer 12 | . 6 6 Grunt 7 | . 5 2 Sentry 2 | . . 2 Best Kill Streak 7 | . 4 7 Combat Bots Only 6 | . 4 6 Max Kills in Single Turn 1 | . 1 1 Gunslinging . | . . . Exploded 1 | . . 1 Melee . | . . . Uniques/NPCs Destroyed . | . . . Combat | -11 -10 -10 -------- Run | Yrd Mat Min Hostile Shots Fired 132 | . 56 76 Missed 30 | . 12 18 Hits 102 | . 44 58 Projectile 102 | . 44 58 Critical Strikes 2 | . . 2 Damage Taken 1221 | . 443 778 Core 282 | . 83 199 Absorbed by Shields . | . . . Core Remaining (%) 100 | 100 . . Volleys Fired 77 | 1 46 30 Largest 2 | 2 2 2 Hottest 40 | 40 40 40 Shots Fired 138 | 2 92 44 Gun 122 | 2 92 28 Cannon . | . . . Launcher 16 | . . 16 Special . | . . . Kinetic 122 | 2 92 28 Thermal . | . . . Explosive 16 | . . 16 Electromagnetic . | . . . Robot Hit Streak 18 | . 18 10 Robot Miss Streak 4 | . 3 4 Penetration Max . | . . . Secondary Targets . | . . . Shots Hit Robots 87 | . 62 25 Core Hits 55 | . 30 25 Critical Kills 1 | . 1 . Critical Parts Destroyed . | . . . Critical Strikes 1 | . 1 . Destroy 1 | . 1 . Melee Attacks . | . . . Impact . | . . . Slashing . | . . . Piercing . | . . . Sneak Attacks . | . . . Combat Hostiles . | . . . Follow-up Attacks . | . . . Damage Inflicted 1418 | 13 526 879 Guns 759 | 13 526 220 Cannons . | . . . Explosions 657 | . . 657 Melee . | . . . Ramming 2 | . . 2 Kinetic 759 | 13 526 220 Thermal . | . . . Explosive 657 | . . 657 Electromagnetic . | . . . Impact . | . . . Slashing . | . . . Piercing . | . . . Highest Corruption 7 | . 7 7 Average Corruption 6 | . 6 7 Corruption Purged . | . . . Corruption Blocked . | . . . Effects 56 | . 32 24 Message Errors 19 | . 11 8 Matter Fused 11 | . 6 5 Heat Flow Errors 9 | . 5 4 Energy Discharges 8 | . 5 3 Parts Rejected 2 | . 2 . Data Loss (minor) 3 | . 1 2 Data Loss (major) 1 | . 1 . Misfires 1 | . . 1 Alerts 1 | . 1 . Weapon Failures 1 | . . 1 Overload Shots . | . . . Overflow Damage 44 | . . 44 Projectiles . | . . . Explosions 44 | . . 44 Melee . | . . . Knockbacks . | . . . Impact . | . . . Kinetic . | . . . Secondary . | . . . Self-Inflicted Damage 106 | . . 106 Shots 4 | . . 4 Rammed 1 | . . 1 Targets Rammed 1 | . . 1 Kicked . | . . . Crushed . | . . . Highest Temperature 238 | . 206 238 Average Temperature 62 | . 53 79 Received Heat Transfer 312 | . 162 150 Siege Activations . | . . . Martial Activations . | . . . Shielding Activations . | . . . Robots Disrupted . | . . . Combat Hostiles . | . . . Robots Corrupted . | . . . Combat Hostiles . | . . . Parts Fried . | . . . Impact Corruptions . | . . . Robots Melted . | . . . Combat Hostiles . | . . . Parts Melted . | . . . Heat Transferred . | . . . Parts Sabotaged . | . . . Parts Stolen . | . . . Parts Stripped . | . . . Power Chain Reactions . | . . . Alert | -11 -10 -10 ------- Run | Yrd Mat Min Maximum Alert Level . | . . . Low Security (%) 100 | 100 100 100 Level 1 . | . . . Level 2 . | . . . Level 3 . | . . . Level 4 . | . . . Level 5 . | . . . High Security . | . . . Max Security . | . . . Peak Influence 159 | . 130 159 Initial . | . . . Average 38 | . 27 62 Influence Increases 613 | . 289 324 Destroy 0b10 Robot/C 420 | . 220 200 Destroy 0b10 Robot/NC 30 | . 15 15 Destroy Leader 84 | . 54 30 Disable Machine 15 | . . 15 Destroy Structure 64 | . . 64 Influence Decreases 587 | . 289 298 Time Decay 557 | . 289 268 Lost Part 30 | . . 30 Squads Dispatched 2 | . 2 . Investigation . | . . . Extermination . | . . . Reinforcement 2 | . 2 . Assault . | . . . Garrison . | . . . Intercept . | . . . Searches Triggered . | . . . Construction Impeded . | . . . Haulers Reinforced . | . . . Active Scanning Responses . | . . . Cargo Convoy Interrupts . | . . . Stealth | -11 -10 -10 --------- Run | Yrd Mat Min Distress Signals 2 | . 2 . Communications Jammed . | . . . Distress Signals . | . . . Times Spotted 38 | . 25 13 Peak Tracking Total 5 | . 5 3 Tactical Retreats . | . . . Traps | -11 -10 -10 ------- Run | Yrd Mat Min Traps Triggered 5 | . 5 . Indirectly . | . . . Trap Hack Attempts . | . . . Triggered . | . . . Disarmed . | . . . Reprogrammed . | . . . Reused . | . . . Traps Extracted . | . . . Installed . | . . . Triggered . | . . . Machines | -11 -10 -10 ---------- Run | Yrd Mat Min Machines Disabled 1 | . . 1 Max in Single Turn 1 | . . 1 Machines Repaired . | . . . Machines Dismantled . | . . . Machines Sabotaged . | . . . Overloaded Fab Kills . | . . . Hacking | -11 -10 -10 --------- Run | Yrd Mat Min Machines Accessed . | . . . Terminals . | . . . Fabricators . | . . . Repair Stations . | . . . Recycling Units . | . . . Scanalyzers . | . . . Garrison Access . | . . . Total Hacks . | . . . Successful . | . . . Failed . | . . . Catastrophic . | . . . Database Lockouts . | . . . Manual 1 | . 1 . Terminals . | . . . Fabricators . | . . . Repair Stations . | . . . Recycling Units . | . . . Scanalyzers . | . . . Garrison Access . | . . . Terminal Hacks . | . . . Fabricator Hacks . | . . . Repair Station Hacks . | . . . Recycling Unit Hacks . | . . . Scanalyzer . | . . . Garrison Access Hacks . | . . . Unauthorized Hacks . | . . . Terminals . | . . . Fabricators . | . . . Repair Stations . | . . . Recycling Units . | . . . Scanalyzers . | . . . Garrison Access . | . . . Data Cores Recovered . | . . . Used . | . . . Hacking Detections . | . . . Full Trace Events . | . . . Feedback Events . | . . . Feedback Blocked . | . . . Robot Schematics Acquired . | . . . Robots Built . | . . . Authchips . | . . . Time . | . . . Total Robot Build Rating . | . . . Part Schematics Acquired . | . . . Parts Built . | . . . Authchips . | . . . Time . | . . . Total Part Build Rating . | . . . Part Studies Acquired . | . . . Parts Repaired . | . . . Time . | . . . Parts Recycled . | . . . Recycled Matter . | . . . Retrieved Matter . | . . . Retrieved Components . | . . . Parts Scanalyzed . | . . . Part Schematics Acquired . | . . . Parts Damaged . | . . . Bothacking | -11 -10 -10 ------------ Run | Yrd Mat Min Used RIF Installer . | . . . Robots Hacked . | . . . Non-combat . | . . . Combat . | . . . Robot Hacks Applied . | . . . Relay Couplers Released . | . . . Fabnet Peak Effective % . | . . . Robots Rewired . | . . . Allies Hacked . | . . . Hacks Repelled . | . . . Allies | -11 -10 -10 -------- Run | Yrd Mat Min Total Allies . | . . . Largest Group . | . . . Highest-Rated Group . | . . . Highest-Rated Ally . | . . . Total Orders . | . . . Ally Attacks . | . . . Total Damage . | . . . Kills . | . . . Allies Corrupted . | . . . Allies Melted . | . . . X0-1V1 Amusement Gains 106 | . 13 93 Good Acts 3 | . . 3 Intel | -11 -10 -10 ------- Run | Yrd Mat Min Active Infowar (turns) . | . . . Robot Analysis Total . | . . . Derelict Logs Recovered . | . . . Drone Launches . | . . . Drone Recoveries . | . . . Exploration | -11 -10 -10 ------------- Run | Yrd Mat Min Turns Passed 2029 | 79 1243 707 Spaces Moved 775 | 46 471 258 Core 7 | 7 . . Treads 768 | 39 471 258 Legs . | . . . Wheels . | . . . Hover . | . . . Flight . | . . . Fastest Speed 50 | 50 160 240 Average Speed 213 | 143 206 240 Slowest Speed 320 | 160 320 240 Overloaded Moves . | . . . Propulsion Burnouts . | . . . Robots Hopped . | . . . Potential Cave-ins . | . . . Cave-ins Triggered . | . . . Exploration Rate (%) 48 | 3 88 54 Regions Visited 2 Branch Regions 1 Pre-discovered Areas . | . . . Known Exits Taken . | . . . Unknown Exits Taken 2 | 1 1 . Scrap Searched . | . . . Spaces Dug . | . . . Terrain Destroyed 94 | . . 94 Melee . | . . . Projectile . | . . . AOE 94 | . . 94 Terrain Rammed . | . . . Walls Destroyed . | . . . Machines Disabled . | . . . Actions | -11 -10 -10 --------- Run | Yrd Mat Min Total 1026 | 55 667 304 Wait 129 | . 129 . Move 773 | 45 470 258 Hop . | . . . Pick Up 24 | 3 13 8 Fast Attach 12 | 6 6 . Attach 6 | . 1 5 Detach 1 | . 1 . Swap 2 | . . 2 Drop 1 | . 1 . Fire 77 | 1 46 30 Melee . | . . . Ram . | . . . Kick . | . . . Crush 1 | . . 1 Escape Stasis . | . . . Rewire . | . . . Trap . | . . . Miscellaneous . | . . . Route ------- -11/Scrapyard -10/Materials (discovered 5 exits: [*Mat x3] / [*Min] / [*Sub]) -10/Mines History --------- Turn | Location | Event 4 | -11/Scrapyard | Discovered new exit (range 14) 80 | -11/Scrapyard | Entered Materials 181 | -10/Materials | Discovered new exit (range 13) 309 | -10/Materials | Build established: Mutant 369 | -10/Materials | Discovered new exit (range 15) 592 | -10/Materials | Discovered new exit (range 7) 796 | -10/Materials | Discovered new exit (range 15) 1238 | -10/Materials | Prayed at D.C.S.S. Altar Unit 1285 | -10/Materials | Discovered new exit (range 11) 1323 | -10/Materials | Entered Mines 1343 | -10/Mines | Core integrity fell below 50% 1390 | -10/Mines | Lost 3 parts (1p2n) 1534 | -10/Mines | Core integrity fell below 20% 1987 | -10/Mines | Received a Rocket Launcher from a helpful Derelict 2030 | -10/Mines | Destroyed self with Rocket Launcher Last Messages --------------- laser when you travel the depths." 01983_ UP-H1F(g): "You know what I say? NO!" 01984_ System corrupted: FCS attempts to trigger Lgt. Assault Rifle. 01984_ System corrupted: Lgt. Assault Rifle misfires. 01984_ UP-H1F(g): "Everyone knows a good old rocket launcher goes a long way." 01985_ UP-H1F(g): "Need to get rid of a swarm? Done. Need a big hole in the wall? Done." 01986_ UP-H1F(g): "Need a small hole in the wall? Leave that to the mining laser wimps, I say!" 01987_ UP-H1F(g): "Would you like a rocket launcher? I know I would if I were you, so I'm going to lend you mine." 01987_ UP-H1F(g) slips back into the shadows. 01999_ Acquired Rocket Launcher. 02021_ System corrupted: Heat flow error (+134). 02028_ Grenade Launcher destroyed. 02030_ X0-1V1 stares into the ether. S-10 Pest form shifts and blurs. 02030_ T-07 Excavator destroyed. 02030_ X0-1V1 snickers! Map ----- +----------------------------------------------------+ | ##????## #??????## ## #???????? | | ##??????## ##??????# ###??????? | | #????????## #???????# ##?????? | | # #?????????## ##?????## ####??? | | ## #?????????# ####### #??? | | ?## #?????????## ### ### | | ??# ##?????####?## ## % | | ??# ##??????# #?## # # | | ??## ##????????# #?# ## # | | ???###??????????# ## ######## # # | | ?????????????????# #??????## # # ## | | ?????????????????## #???????# # # #? ## | | ??????????????????## #???????# # #?? #? | | ???????????????????## ##???????## ## ???#? | | ????????????????????## ###?????????# ???? | | ?????????????????????#### #??????????? ??? | | ????????????????????????# #???????????# ? ??? | | ????????????????????????# #??????????? ? ?? | | ????????????????????????# #??#???????? ? ? | | ????????????????????????# ## #???????? ?? ? | | ????????????????????????# #????????# ??? ?? | | ????????????????????????# ####????????### ?????? | | ????????????????????????# #??????????????##??????? | | ????????????????????????# #??????????????????????? | | ???????????????# ##### ##?????????????????????? | | ?????????? %@ #?????????????????????? | | ?????????? = #???????????????????? | | ??????????s s ###### #???????????????????? | | ???????????# ?????????# #???????????????????? | | ???????????##?????????????? #???????????????????? | | ??????????????????????????? #???????????????????? | | ??????????????????????????? ???????????????????? | | ????????????????????????????###??????????????????? | | ?????????????????????????????????????????????????? | | ?????????????????????????????????????????????????? | | ?????????????????????????????????????????????????? | | ?????????????????????????????????????????????????? | | ?????????????????????????????????????????????????? | | ?????????????????????????????????????????????????? | | ?????????????????????????????????????????????????? | | ?????????????????????????????????????????????????? | | ?????????????????????????????????????????????????? | | ?????????????????????????????????????????????????? | | ?????????????????????????????????????????????????? | | ?????????????????????????????????????????????????? | | ?????????????????????????????????????????????????? | | ?????????????????????????????????????????????????? | | ?????????????????????????????????????????????????? | | ?????????????????????????????????????????????????? | | | +----------------------------------------------------+ Best States ------------- Heat Dissipation 25 Energy Generation 10 Energy Capacity 1050 Matter Stores 300 Matter Capacity 300 Sight Range 16 Terrain Scan Density 10 Evasion (%) 40 Recoil Reduction 2 Item Schematics ----------------- None Robot Schematics ------------------ None Fabricated ------------ Nothing Repaired ---------- Nothing Studied --------- None Alien Tech Used ----------------- None Achievements -------------- None Challenges ------------ None Game ------ Seed ThermalSapperLauncher Manual? 0 Play Time 00:07:55 Cumulative 547.9 hours Start 2026.08.01 @ 21:08:33 End 2026.08.01 @ 21:14:27 Sessions 1 Manual Loads 0 Difficulty Rogue Special Mode None Game No. 456 Rogue 420 Adventurer 36 Explorer 0 Win Type - Total 27 Types 10/1/14/0/0/1/1/0/0/0 Lore% 74 Gallery% 86 Achievement% 74 Wizard Run 0 Options --------- Layout 0 ASCII 0 Keyboard 0 Movement Mouse Keybinds 0 Fullscreen 1 Font 18/SmallcapsGlow Map View 76x50 Zoom Use 0% Tactical HUD 1 Map Filters NONE Filters NONE Steam 1 RUN: 444912a2-b640-4591-bcf5-916b260693cf